bitfinex/quotes_ETHUSD_20241129
["timestamp","ask_amount","ask_price","bid_price","bid_amount"]
[1732881732398,5.92186,3598.6,3597.8,2.77941]
[1732881732399,0.09704955,3598.1,3598.0,3.56247]
[1732881732640,0.09704955,3598.1,3598.0,3.6118351]
[1732881732811,0.09705217,3598.4,3598.0,3.6118351]
[1732881733005,0.09705217,3598.5,3598.1,2.77923]
[1732881733311,2.77883,3598.7,3598.2,0.0492448]
[1732881733492,0.09707421,3598.6,3598.3,2.77909]
[1732881733696,0.09707421,3598.5,3598.3,0.04918466]
[1732881733918,2.77886,3598.6,3598.0,0.7832]
[1732881734132,2.7791,3598.3,3597.7,0.8011]
[1732881734443,2.77924,3598.2,3597.7,0.8011]
[1732881734735,2.77924,3598.2,3597.5,2.77965]
[1732881734736,0.570128,3598.2,3597.5,2.77965]
[1732881735040,2.9221,3598.3,3597.7,2.77949]
[1732881735041,0.143,3598.3,3597.7,2.77949]
[1732881735337,5.77903,3598.4,3597.9,2.77939]
[1732881735496,3.143,3598.6,3597.9,3.56269]
[1732881735702,0.143,3598.9,3598.4,2.77894]
[1732881735910,5.77864,3598.9,3598.5,0.7763]
[1732881736455,2.77883,3598.7,3598.1,3.60852]
[1732881736612,3.0,3598.7,3597.9,2.77939]
[1732881736808,2.7794,3597.9,3597.4,0.8293]
[1732881737241,2.77954,3597.8,3597.4,0.8293]
[1732881737408,2.77962,3597.7,3597.4,0.8293]
[1732881737743,0.143,3598.0,3597.1,3.57769]
[1732881737946,0.735214,3598.0,3597.1,0.7977]
[1732881738241,2.77978,3597.4,3596.9,2.78015]
[1732881738641,3.0,3597.7,3596.7,2.78032]
[1732881738844,3.371544,3598.0,3597.3,0.8137]
[1732881739005,2.77878,3598.7,3598.1,2.77919]
[1732881739210,2.77878,3598.7,3598.0,0.7507]
[1732881739211,4.0,3598.2,3598.0,0.7507]
[1732881739410,4.0,3598.2,3598.0,3.53]
[1732881740123,2.77878,3598.7,3598.0,0.7507]
[1732881740337,2.77885,3598.6,3598.0,3.53001]
[1732881740511,2.77879,3598.7,3598.1,2.7792]
[1732881740819,2.77886,3598.6,3598.1,0.04637098]
[1732881741032,3.648835,3598.7,3598.1,0.04637098]
[1732881741332,2.77894,3598.5,3598.1,0.04637098]
[1732881741522,2.77916,3598.2,3598.1,0.04637098]
[1732881741722,2.77896,3598.5,3597.7,0.7917]
[1732881741949,2.77905,3598.4,3598.1,0.04627883]
[1732881742159,0.143,3599.1,3598.5,2.77889]
[1732881742459,3.0,3598.7,3598.6,0.04598721]
[1732881742747,3.0,3598.7,3598.4,0.7834]
[1732881742933,5.77878,3598.7,3598.6,0.04598721]
[1732881743574,5.77878,3598.7,3598.1,3.54682]
[1732881743770,5.77878,3598.7,3598.6,0.04598721]
[1732881743980,5.77878,3598.7,3598.1,3.54682]
[1732881744143,5.77878,3598.7,3598.6,0.04598721]
[1732881744349,6.634516,3598.7,3598.1,3.54682]
[1732881744546,5.77878,3598.7,3598.6,0.04598721]
[1732881744747,5.77878,3598.7,3598.1,3.54682]
[1732881745076,5.77878,3598.7,3598.2,2.77916]
[1732881745284,5.77878,3598.7,3598.2,2.82538777]
[1732881745782,2.77893,3598.5,3598.2,0.04622777]
[1732881746275,3.334701,3598.5,3598.2,0.04622777]
[1732881746477,2.77913,3598.3,3597.7,3.57223]
[1732881748338,2.92201,3598.4,3597.7,3.57223]
[1732881748538,2.92201,3598.4,3597.7,0.7927]
[1732881748780,2.92201,3598.4,3597.8,2.77947]
[1732881749579,2.77929,3598.1,3597.7,0.7927]
[1732881749878,2.7796,3597.7,3597.4,0.8215]
[1732881750042,2.7796,3597.7,3597.1,3.60145]
[1732881750380,2.77953,3597.8,3597.2,2.77993]
[1732881750588,2.77964,3597.6,3597.1,0.8215]
[1732881750785,2.77964,3597.6,3597.1,1.38661131]
[1732881751287,2.77964,3597.6,3597.1,0.8215]
[1732881751655,0.143,3597.4,3596.4,0.56388728]
[1732881751890,2.92283,3597.4,3596.5,0.7742]
[1732881752076,2.77999,3597.2,3596.5,3.55467]
[1732881752277,2.78014,3597.0,3596.5,0.7742]
[1732881753191,2.78001,3597.1,3596.5,0.7742]
[1732881753964,2.77987,3597.3,3596.5,0.7742]
[1732881754182,2.78002,3597.1,3596.5,3.55465]
[1732881754550,2.78002,3597.1,3596.6,0.04728661]
[1732881755086,2.77998,3597.2,3596.6,2.82767661]
[1732881755385,2.78002,3597.1,3596.6,0.04728661]
[1732881755552,2.78021,3596.9,3596.6,0.04728661]
[1732881755752,2.78025,3596.8,3596.6,0.04728661]
[1732881756262,2.78025,3596.8,3596.2,0.8098]
[1732881756585,2.78039,3596.7,3596.2,0.8098]
[1732881756891,2.78033,3596.7,3596.3,0.0475581]
[1732881757186,2.78048,3596.5,3596.3,0.0475581]
[1732881757348,2.78055,3596.4,3596.3,0.0475581]
[1732881757863,2.78055,3596.4,3596.3,0.04757369]
[1732881758181,0.278033,3596.6,3595.9,2.78093]
[1732881758400,2.78032,3596.7,3596.3,0.04757369]
[1732881758609,2.7805,3596.5,3595.9,2.78093]
[1732881758895,2.7805,3596.5,3595.8,0.7863]
[1732881758896,2.78061,3596.4,3595.8,0.7863]
[1732881759085,2.78065,3596.3,3596.0,0.04775433]
[1732881759273,2.78065,3596.3,3595.8,0.7863]
[1732881759483,2.78065,3596.3,3596.1,0.04792778]
[1732881759798,2.78065,3596.3,3595.8,0.7863]
[1732881760007,2.78065,3596.3,3596.2,0.04786756]
[1732881760173,2.78065,3596.3,3595.8,0.7863]
[1732881760372,2.78065,3596.3,3596.2,0.04786756]
[1732881760575,2.78065,3596.3,3595.8,0.7863]
[1732881760784,2.78065,3596.3,3596.2,0.04786756]
[1732881760969,2.78071,3596.2,3595.8,0.7863]
[1732881762697,0.556115,3596.3,3595.8,0.7863]
[1732881762906,2.78077,3596.2,3595.8,0.7863]
[1732881763081,2.92328,3596.8,3595.8,0.7863]
[1732881763288,2.78075,3596.2,3595.8,0.7863]
[1732881763901,2.78134,3595.4,3594.7,0.7859]
[1732881764106,2.78109,3595.7,3594.7,0.7859]
[1732881764260,0.59624099,3595.6,3594.7,0.7859]
[1732881764457,2.7817,3595.0,3594.7,0.7859]
[1732881764696,2.78154,3595.2,3594.7,0.7859]
[1732881764901,2.78168,3595.0,3594.7,0.7859]
[1732881765260,0.143,3595.3,3594.7,0.7859]
[1732881765504,2.78173,3594.9,3594.4,0.8319]
[1732881766265,2.78164,3595.0,3594.4,3.61394]
[1732881767099,2.78162,3595.1,3594.5,2.78201]
[1732881768183,2.78162,3595.1,3594.4,0.8319]
[1732881768497,2.92446,3595.3,3594.5,2.782]
[1732881768660,2.78138,3595.4,3594.7,2.78186]
[1732881768869,3.18131988,3595.4,3594.3,3.59686]
[1732881769062,2.7818,3594.8,3594.3,0.8147]
[1732881769263,2.78197,3594.6,3594.3,0.8147]
[1732881770163,3.481337,3594.6,3593.9,0.7909]
[1732881770358,0.143,3594.7,3593.6,1.0]
[1732881770608,2.7824,3594.1,3593.6,1.8042]
[1732881770905,2.78229,3594.2,3593.6,1.8042]
[1732881771205,2.78229,3594.2,3593.6,4.5869]
[1732881771403,2.78234,3594.1,3593.6,1.8042]
[1732881771566,2.78234,3594.1,3593.7,0.04985346]
[1732881772299,2.78189,3594.7,3593.8,0.7811]
[1732881772506,3.415149,3594.6,3593.8,0.83089317]
[1732881772679,2.78216,3594.4,3593.8,3.61340317]
[1732881773003,2.78203,3594.5,3593.8,0.83089317]
[1732881773508,2.78203,3594.5,3593.9,2.78248]
[1732881773711,2.7819,3594.7,3594.0,2.78239]
[1732881773864,2.78204,3594.5,3594.0,0.04967259]
[1732881774072,2.78204,3594.5,3593.9,2.78247]
[1732881774273,2.78204,3594.5,3594.1,0.0496123]
[1732881774501,2.78204,3594.5,3593.9,2.78247]
[1732881774691,2.78188,3594.7,3594.2,0.04955202]
[1732881774966,2.78185,3594.8,3593.9,2.78247]
[1732881775165,2.78188,3594.7,3594.3,0.04949174]
[1732881775365,2.78188,3594.7,3594.1,2.78231]
[1732881775608,2.78188,3594.7,3594.4,0.04943146]
[1732881775776,2.78188,3594.7,3594.1,2.78231]
[1732881775978,2.78188,3594.7,3594.5,0.04937119]
[1732881776204,2.78188,3594.7,3594.1,2.78231]
[1732881776395,2.78188,3594.7,3594.6,0.04931092]
[1732881776594,2.78188,3594.7,3594.0,2.7824]
[1732881776899,2.78172,3594.9,3594.0,2.7824]
[1732881777071,2.78195,3594.6,3594.1,0.0496123]
[1732881777471,2.78195,3594.6,3593.9,2.78248]
[1732881777683,2.78195,3594.6,3594.2,0.04955202]
[1732881777998,2.78195,3594.6,3593.9,2.78248]
[1732881778179,2.78195,3594.6,3594.3,0.04949174]
[1732881778382,2.78233,3594.2,3593.6,1.0]
[1732881778576,3.481394,3594.5,3594.4,0.04943146]
[1732881778890,2.78241,3594.0,3593.6,1.0]
[1732881779269,2.78241,3594.0,3593.7,0.04986256]
[1732881779466,2.7823,3594.2,3593.7,0.04986256]
[1732881780212,2.78234,3594.1,3593.7,0.04986256]
[1732881780508,2.78248,3594.0,3593.7,0.04986256]
[1732881780685,2.78234,3594.1,3593.7,0.04986256]
[1732881780686,2.78254,3593.9,3593.7,0.04986256]
[1732881781175,2.92554,3593.9,3593.7,0.04986256]
[1732881781516,2.78256,3593.8,3593.7,0.04986256]
[1732881782004,0.570788,3593.9,3593.7,0.04986256]
[1732881782206,0.570788,3593.9,3593.6,1.0]
[1732881782511,0.143,3594.4,3593.7,0.0499302]
[1732881782674,5.78216,3594.4,3593.8,0.8004]
[1732881782871,2.78216,3594.4,3593.8,0.8004]
[1732881783083,2.78195,3594.6,3594.0,2.7824]
[1732881783301,3.4036922,3594.6,3593.9,2.83157641]
[1732881783489,2.78195,3594.6,3594.1,0.04898583]
[1732881783688,0.292472,3594.9,3594.0,0.04904612]
[1732881783923,2.78203,3594.5,3594.2,0.04892555]
[1732881784201,2.78211,3594.4,3593.9,2.78247]
[1732881784401,2.78211,3594.4,3594.3,0.04886527]
[1732881784571,2.78211,3594.4,3593.9,2.78247]
[1732881784797,2.78211,3594.4,3594.3,0.04886527]
[1732881784970,2.78211,3594.4,3593.8,0.8004]
[1732881785176,2.78211,3594.4,3594.3,0.04886527]
[1732881785409,3.338517,3594.4,3593.8,0.8004]
[1732881785624,3.338517,3594.4,3593.6,0.93958585]
[1732881785625,2.78264,3593.7,3593.6,0.93958585]
[1732881785772,2.92642,3592.7,3592.6,0.1533109]
[1732881785976,5.96473988,3592.7,3592.6,0.1533109]
[1732881786178,9.51473988,3592.7,3592.6,0.1533109]
[1732881786426,9.61129376,3592.7,3592.6,0.1533109]
[1732881788177,10.02297388,3592.7,3592.6,0.1533109]
[1732881788380,11.74518006,3592.7,3592.6,0.1533109]
[1732881789027,11.64862618,3592.7,3592.6,0.1533109]
[1732881789317,11.74493333,3592.7,3592.6,0.1533109]
[1732881789524,8.64862618,3592.7,3592.6,0.1533109]
[1732881792341,0.693,3592.1,3591.5,0.00167]
[1732881792524,2.78404,3591.9,3591.5,0.00167]
[1732881792730,2.78425,3591.7,3591.5,0.00167]
[1732881792968,0.143,3592.1,3591.6,0.04560314]
[1732881793254,6.78357,3592.5,3591.7,3.61493]
[1732881793569,2.78366,3592.4,3591.8,0.04548241]
[1732881794013,4.0,3592.5,3591.8,0.04548241]
[1732881794014,6.78357,3592.5,3591.8,0.04548241]
[1732881794955,2.78357,3592.5,3591.8,2.82958241]
[1732881795115,2.78343,3592.7,3591.8,0.04548241]
[1732881795315,2.78366,3592.4,3591.8,0.04548241]
[1732881796445,0.556717,3592.3,3591.8,0.04548241]
[1732881796657,2.7838,3592.2,3591.8,0.04548241]
[1732881796814,0.556717,3592.3,3591.8,0.04548241]
[1732881796815,2.78394,3592.1,3591.8,0.04548241]
[1732881797158,2.78404,3591.9,3591.8,0.04548241]
[1732881797451,2.78413,3591.8,3591.5,0.00167]
[1732881799262,2.78424,3591.7,3591.5,0.00167]
[1732881799422,2.78427,3591.6,3591.5,0.00167]
[1732881799660,7.03411,3591.6,3591.5,0.00167]
[1732881799857,3.43735454,3591.6,3591.5,0.00167]
[1732881800083,3.34111,3591.6,3591.5,0.00167]
[1732881800558,3.89111,3591.6,3591.5,0.00167]
[1732881800754,7.89111,3591.6,3591.5,0.00167]
[1732881801194,8.03411,3591.6,3591.5,0.00167]
[1732881801893,7.48411,3591.6,3591.5,0.00167]
[1732881802461,8.03275691,3591.6,3591.5,0.00167]
[1732881802802,8.12890858,3591.6,3591.5,0.00167]
[1732881802953,8.03275691,3591.6,3591.5,0.00167]
[1732881803161,8.12892109,3591.6,3591.5,0.00167]
[1732881803374,8.03275691,3591.6,3591.5,0.00167]
[1732881803777,8.12890048,3591.6,3591.5,0.00167]
[1732881804589,11.67890048,3591.6,3591.5,0.00167]
[1732881805188,0.143,3591.2,3590.1,0.8308]
[1732881805516,0.55,3591.1,3590.2,0.04555867]
[1732881805700,2.78533,3590.3,3590.1,0.8308]
[1732881805900,2.78481,3590.9,3590.3,0.04549825]
[1732881806104,2.7853,3590.3,3590.1,0.8308]
[1732881806499,2.78528,3590.3,3590.1,0.8308]
[1732881806879,2.78536,3590.2,3590.1,0.8308]
[1732881807774,2.92843,3590.1,3590.0,3.52272727]
[1732881808119,2.78543,3590.1,3590.0,3.52272727]
[1732881809320,2.78528,3590.3,3590.0,3.52272727]
[1732881809526,2.78528,3590.3,3590.0,4.32182727]
[1732881809819,2.78538,3590.2,3590.0,4.32182727]
[1732881809978,2.78543,3590.1,3590.0,4.32182727]
[1732881810376,2.78543,3590.1,3590.0,3.52272727]
[1732881810613,3.342504,3590.1,3590.0,3.52272727]
[1732881811023,3.342504,3590.1,3590.0,4.33512727]
[1732881811188,2.78491,3590.8,3590.0,4.33512727]
[1732881811519,3.54842648,3591.2,3590.1,2.78536]
[1732881811723,2.78505,3590.6,3590.0,4.33512727]
[1732881812024,2.78517,3590.5,3590.0,4.33512727]
[1732881812322,2.78521,3590.4,3590.0,4.33512727]
[1732881812925,2.78497,3590.7,3590.0,4.33512727]
[1732881813079,2.7852,3590.5,3590.0,4.33512727]
[1732881813282,2.7852,3590.5,3590.1,0.04594113]
[1732881813721,2.78522,3590.4,3590.1,0.04594113]
[1732881814589,2.7853,3590.3,3590.1,0.04594113]
[1732881814793,2.78536,3590.2,3590.1,0.04594113]
[1732881815381,2.78525,3590.4,3590.1,0.04594113]
[1732881815894,2.78536,3590.2,3590.1,0.04594113]
[1732881816121,3.356717,3590.2,3590.1,0.04594113]
[1732881816625,2.78536,3590.2,3590.1,0.04594113]
[1732881816978,2.78521,3590.4,3590.1,0.04594113]
[1732881817181,2.78498,3590.7,3590.2,0.7807]
[1732881817423,0.09654885,3590.6,3590.2,0.7807]
[1732881817582,0.09654885,3590.6,3590.3,0.0458034]
[1732881817778,2.78497,3590.7,3590.3,0.0458034]
[1732881817982,2.78497,3590.7,3590.2,0.7807]
[1732881818181,2.78481,3590.9,3590.4,0.04574299]
[1732881818398,2.78505,3590.6,3590.2,0.7807]
[1732881818595,2.78505,3590.6,3590.5,0.04568259]
[1732881818894,2.88161571,3590.6,3590.5,0.04568259]
[1732881819098,2.88161571,3590.6,3590.2,0.7807]
[1732881819413,2.78505,3590.6,3590.3,0.0458034]
[1732881819800,2.78505,3590.6,3590.2,0.7807]
[1732881820000,2.78505,3590.6,3590.4,0.04574299]
[1732881820204,2.78505,3590.6,3590.3,0.0458034]
[1732881820521,2.78505,3590.6,3590.2,0.7807]
[1732881820522,2.78505,3590.6,3590.4,0.04574299]
[1732881820701,2.78505,3590.6,3590.2,0.7807]
[1732881820901,0.592781,3590.9,3590.3,0.0458034]
[1732881821098,2.78497,3590.7,3590.3,0.0458034]
[1732881821339,2.88165995,3590.6,3590.2,0.7807]
[1732881821510,2.78505,3590.6,3590.4,0.04576119]
[1732881821715,2.78505,3590.6,3590.0,3.52272727]
[1732881821716,2.78543,3590.1,3590.0,3.52272727]
[1732881822041,6.6353748,3590.1,3590.0,3.52272727]
[1732881822920,10.6353748,3590.1,3590.0,3.52272727]
[1732881824011,7.58214349,3590.1,3590.0,3.52272727]
[1732881824228,4.09663649,3590.1,3590.0,4.33942727]
[1732881824549,2.78534,3590.3,3590.0,4.33942727]
[1732881824835,2.78535,3590.3,3590.0,4.33942727]
[1732881824998,2.78535,3590.3,3590.0,3.83942727]
[1732881825339,0.592781,3590.9,3590.0,3.83942727]
[1732881825340,2.78527,3590.4,3590.0,3.83942727]
[1732881825515,0.09675369,3590.3,3590.0,4.501931]
[1732881825714,2.78514,3590.5,3590.0,4.501931]
[1732881825937,2.78514,3590.5,3590.0,3.83942727]
[1732881826438,0.09682185,3590.4,3590.0,6.62490727]
[1732881826603,0.09682956,3590.6,3590.2,0.8224]
[1732881826804,0.09682956,3590.5,3590.2,0.8224]
[1732881827015,0.09682956,3590.7,3590.2,3.60775]
[1732881827335,2.7852,3590.5,3590.2,0.8224]
[1732881827543,2.88202956,3590.4,3590.2,0.8224]
[1732881827844,0.56664696,3590.7,3590.2,0.8224]
[1732881828030,0.09683691,3590.6,3590.2,0.8224]
[1732881828210,2.78498,3590.7,3590.5,2.96742501]
[1732881828535,2.88187701,3590.6,3590.5,2.96742501]
[1732881830607,0.09683701,3590.6,3590.5,2.96742501]
[1732881831430,2.88187701,3590.6,3590.5,3.01170811]
[1732881832447,2.88201763,3590.6,3590.5,3.01170811]
[1732881832741,2.78504,3590.6,3590.5,3.01170811]
[1732881832916,2.8820349,3590.6,3590.5,3.01170811]
[1732881833325,0.0969949,3590.6,3590.5,3.01170811]
[1732881834561,0.0969949,3590.6,3590.5,7.23207392]
[1732881834742,0.09701273,3591.4,3590.9,2.78477]
[1732881834937,0.09701273,3591.3,3591.0,0.7676]
[1732881835170,0.09701565,3591.2,3591.0,0.81146713]
[1732881835328,2.78414,3591.8,3591.0,0.81146713]
[1732881835669,2.78434,3591.6,3591.0,3.59618713]
[1732881835972,0.0969642,3591.5,3591.1,2.78466]
[1732881836278,2.78382,3592.2,3591.4,2.78438]
[1732881836480,0.09695803,3592.1,3591.9,2.78397]
[1732881836766,0.09695803,3592.5,3592.1,0.7584]
[1732881836970,2.78343,3592.7,3592.1,3.54226]
[1732881837130,2.78327,3592.9,3592.2,2.82680421]
[1732881837764,2.78336,3592.8,3592.2,0.04300421]
[1732881837967,2.78362,3592.5,3592.2,0.04300421]
[1732881838130,2.78342,3592.7,3592.2,0.04300421]
[1732881838669,0.556655,3592.8,3592.3,2.78372]
[1732881838972,2.78328,3592.9,3592.4,0.04288352]
[1732881839270,2.78336,3592.8,3592.4,0.04288352]
[1732881839434,2.78345,3592.7,3592.4,0.04288352]
[1732881839636,2.78345,3592.7,3592.5,0.04282318]
[1732881839872,2.78345,3592.7,3592.1,0.7584]
[1732881839873,2.78345,3592.7,3592.1,3.54228]
[1732881840041,2.78328,3592.9,3592.1,3.54228]
[1732881840243,2.78328,3592.9,3592.3,2.78372]
[1732881840432,2.78312,3593.1,3592.1,3.54228]
[1732881840433,2.78312,3593.1,3592.4,2.82653352]
[1732881840764,2.78299,3593.3,3592.7,2.78339]
[1732881840973,2.78282,3593.5,3592.6,2.78344]
[1732881841147,2.78282,3593.5,3592.9,2.78326]
[1732881841561,2.78282,3593.5,3593.0,0.04238829]
[1732881841730,2.74632,3593.5,3593.0,0.04238829]
[1732881841934,2.78275,3593.6,3593.1,0.8122]
[1732881842173,2.78281,3593.5,3593.1,0.8122]
[1732881842338,2.78281,3593.5,3593.2,0.04226765]
[1732881843170,2.92543,3594.0,3593.2,0.04226765]
[1732881843371,2.78281,3593.5,3593.2,0.04226765]
[1732881843584,2.78281,3593.5,3593.1,0.8122]
[1732881843872,2.78281,3593.5,3593.2,0.04226765]
[1732881844278,0.292543,3593.9,3593.2,0.04226765]
[1732881844583,2.78272,3593.6,3593.2,0.04226765]
[1732881844889,2.78256,3593.8,3593.2,0.04226765]
[1732881845070,2.78264,3593.7,3593.2,0.04226765]
[1732881845248,2.7828,3593.5,3593.2,0.04226765]
[1732881845583,2.78288,3593.4,3593.2,0.04226765]
[1732881845738,2.78275,3593.6,3593.2,0.04226765]
[1732881845944,2.78264,3593.8,3593.2,0.04226765]
[1732881846150,2.78264,3593.8,3593.2,2.82529765]
[1732881846446,2.78234,3594.1,3593.5,3.57085]
[1732881846644,2.78149,3595.2,3593.3,0.04174941]
[1732881846645,2.78204,3594.5,3593.8,0.7881]
[1732881847257,2.78219,3594.3,3593.8,0.7881]
[1732881847571,2.78219,3594.3,3593.9,0.04136045]
[1732881847770,2.78205,3594.5,3593.9,0.04136045]
[1732881849664,2.78205,3594.5,3593.9,2.82383045]
[1732881849863,2.78189,3594.7,3594.0,2.78241]
[1732881850067,2.78173,3594.9,3594.1,0.04119335]
[1732881850292,0.292473,3594.8,3594.1,0.04119335]
[1732881850673,3.074263,3594.8,3594.1,0.04119335]
[1732881850886,3.074263,3594.8,3593.9,2.78248]
[1732881851193,2.782,3594.6,3594.0,0.04125234]
[1732881851490,2.78204,3594.5,3594.0,0.04125234]
[1732881851793,3.060314,3594.4,3593.8,0.7881]
[1732881851996,3.060314,3594.4,3594.1,0.04117655]
[1732881852156,0.278204,3594.4,3593.9,2.78248]
[1732881852496,2.78202,3594.5,3594.3,0.803]
[1732881852958,2.78202,3594.5,3594.4,0.04099571]
[1732881853157,0.143,3595.3,3594.4,0.04099571]
[1732881853382,2.78132,3595.5,3594.4,0.04099571]
[1732881853700,2.78161,3595.1,3594.4,2.82308571]
[1732881853857,0.556301,3595.0,3594.4,0.04099571]
[1732881854055,2.92415,3595.7,3594.4,0.04099571]
[1732881854056,2.78181,3594.8,3594.4,0.04099571]
[1732881854357,2.78172,3594.9,3594.4,0.04099571]
[1732881854552,2.7819,3594.7,3594.4,0.04099571]
[1732881854781,2.78172,3594.9,3594.4,0.04099571]
[1732881855256,0.143,3595.7,3594.5,0.757]
[1732881855592,2.78125,3595.5,3594.6,2.78193]
[1732881855769,0.39992575,3595.6,3594.6,2.78193]
[1732881855770,2.78133,3595.4,3594.6,2.78193]
[1732881855972,2.78161,3595.1,3594.7,0.04077226]
[1732881856370,2.78161,3595.1,3594.5,0.757]
[1732881856575,2.78166,3595.0,3594.8,0.040712]
[1732881856777,3.337987,3595.0,3594.5,0.757]
[1732881856978,0.556327,3595.0,3594.5,3.53901]
[1732881857180,2.78138,3595.4,3594.7,2.78185]
[1732881857379,3.18110575,3595.6,3594.9,2.7817]
[1732881857592,3.18110575,3595.6,3595.0,3.5807]
[1732881857802,3.18110575,3595.6,3595.0,3.62104986]
[1732881858164,2.78126,3595.5,3595.0,0.83944986]
[1732881858686,3.37748158,3595.5,3595.0,0.83944986]
[1732881859062,0.59622158,3595.5,3595.0,0.83944986]
[1732881859263,2.78156,3595.1,3595.0,0.83944986]
[1732881859462,2.78156,3595.1,3594.5,0.7991]
[1732881859658,2.78156,3595.1,3593.5,0.09987839]
[1732881859659,2.78146,3595.3,3594.7,0.7991]
[1732881859889,2.78151,3595.2,3594.7,0.7991]
[1732881860104,2.78156,3595.1,3594.8,0.04043938]
[1732881860284,2.78171,3594.9,3594.7,0.7991]
[1732881860676,0.556302,3595.0,3594.7,0.7991]
[1732881860992,2.78171,3594.9,3594.8,0.04043938]
[1732881861295,0.556302,3595.0,3594.7,0.7991]
[1732881861594,2.78141,3595.3,3594.7,0.7991]
[1732881861959,2.78169,3595.0,3594.8,0.04045488]
[1732881862160,2.78171,3594.9,3594.8,0.04045488]
[1732881862473,2.78179,3594.8,3594.7,0.7991]
[1732881862690,2.78179,3594.8,3594.7,0.83961514]
[1732881862890,2.78169,3595.0,3594.7,0.83961514]
[1732881863183,3.99925747,3595.8,3594.7,0.83961514]
[1732881863184,2.78154,3595.2,3594.7,0.83961514]
[1732881863389,2.78161,3595.1,3594.7,0.83961514]
[1732881864301,2.78169,3595.0,3594.7,0.83961514]
[1732881864479,2.78179,3594.8,3594.7,0.83961514]
[1732881864663,2.78169,3595.0,3594.7,0.7991]
[1732881864864,2.78169,3595.0,3594.8,0.04045488]
[1732881865200,0.39992575,3595.7,3594.7,0.7991]
[1732881865201,2.78179,3594.8,3594.7,0.7991]
[1732881865695,2.7817,3595.0,3594.7,0.83961514]
[1732881866083,2.78164,3595.0,3594.7,0.83961514]
[1732881866396,2.78179,3594.8,3594.7,0.83961514]
[1732881867666,5.56334,3595.0,3594.7,0.83961514]
[1732881867986,2.78171,3594.9,3594.7,0.83961514]
[1732881868185,2.78179,3594.8,3594.7,0.83961514]
[1732881871037,2.78164,3595.0,3594.7,0.83961514]
[1732881871310,2.78179,3594.8,3594.7,0.83961514]
[1732881872324,3.616303,3594.8,3594.4,0.789]
[1732881872485,2.78202,3594.5,3594.4,0.789]
[1732881876780,2.78202,3594.5,3594.4,0.82969465]
[1732881877239,2.78194,3594.7,3594.4,0.82969465]
[1732881877516,2.78175,3594.9,3594.4,0.82969465]
[1732881877675,0.143,3595.5,3594.4,0.82969465]
[1732881878013,2.7817,3595.0,3594.6,0.775]
[1732881878392,2.78147,3595.3,3594.7,0.04051384]
[1732881878611,2.78147,3595.3,3594.8,0.7774]
[1732881878832,2.7815,3595.2,3594.8,0.81785358]
[1732881879118,2.78149,3595.2,3594.8,0.81785358]
[1732881880213,2.78157,3595.1,3594.8,0.81785358]
[1732881880420,2.7817,3595.0,3594.8,0.81785358]
[1732881880740,2.78171,3594.9,3594.8,0.04045358]
[1732881880879,2.78171,3594.9,3594.7,0.7501]
[1732881881084,2.78171,3594.9,3594.8,0.04050137]
[1732881881285,2.78171,3594.9,3594.7,0.7501]
[1732881881635,3.337916,3595.1,3594.8,0.04050137]
[1732881881922,3.337916,3595.1,3594.7,0.7501]
[1732881881923,2.78165,3595.0,3594.7,0.7501]
[1732881882078,2.78164,3595.0,3594.8,0.04050137]
[1732881882299,2.78164,3595.0,3594.7,0.7501]
[1732881882497,2.78143,3595.3,3594.8,0.04050137]
[1732881882720,2.78126,3595.5,3594.7,0.7501]
[1732881882925,2.78156,3595.2,3594.8,0.04050137]
[1732881883096,2.78158,3595.1,3594.7,0.7501]
[1732881883302,2.78158,3595.1,3594.8,0.04050137]
[1732881883539,2.78158,3595.1,3594.7,0.7501]
[1732881883732,2.78158,3595.1,3594.8,0.04050137]
[1732881883933,2.78158,3595.1,3594.7,0.7501]
[1732881884233,2.78158,3595.1,3594.8,0.04047684]
[1732881884603,2.78158,3595.1,3594.7,0.7501]
[1732881884804,2.78158,3595.1,3594.9,0.04041658]
[1732881885046,2.78158,3595.1,3594.8,0.04047684]
[1732881885339,2.78158,3595.1,3594.9,0.04041658]
[1732881885511,2.78158,3595.1,3594.7,0.7501]
[1732881885722,2.78168,3595.0,3594.8,0.04047684]
[1732881886025,2.78168,3595.0,3594.7,0.7501]
[1732881886339,2.78168,3595.0,3594.8,0.04047684]
[1732881886540,2.78168,3595.0,3594.7,0.7501]
[1732881886835,2.78168,3595.0,3594.8,0.04047684]
[1732881887008,2.78171,3595.0,3594.8,0.04047684]
[1732881887210,2.78171,3595.0,3594.7,0.7501]
[1732881887416,2.78179,3594.8,3594.7,0.7501]
[1732881887610,5.56341,3595.0,3594.7,0.7501]
[1732881887804,2.7817,3595.0,3594.7,0.7501]
[1732881888400,2.78141,3595.3,3594.7,3.53194]
[1732881888606,2.78136,3595.4,3594.8,2.78179]
[1732881889051,2.78134,3595.4,3594.8,2.78175]
[1732881889743,2.78134,3595.4,3594.7,0.7501]
[1732881889997,2.78148,3595.3,3594.8,0.7838]
[1732881890195,3.337759,3595.3,3594.8,0.7838]
[1732881890502,2.78149,3595.2,3594.8,0.7838]
[1732881890710,2.78128,3595.5,3594.8,3.56552]
[1732881890890,2.7804,3596.6,3595.6,0.8293]
[1732881891059,2.7804,3596.6,3595.9,2.78092]
[1732881891060,2.78052,3596.5,3595.9,2.78092]
[1732881891256,2.78033,3596.7,3596.0,0.8293]
[1732881891471,2.7804,3596.6,3596.0,3.64979837]
[1732881892015,0.292333,3596.7,3596.0,0.86895837]
[1732881892607,2.78045,3596.6,3596.0,0.86895837]
[1732881893406,0.292333,3596.7,3596.2,2.78071]
[1732881894002,0.292333,3596.7,3596.3,0.03791419]
[1732881894360,2.78046,3596.6,3596.3,0.03791419]
[1732881894561,2.78046,3596.6,3596.0,3.61011]
[1732881894868,2.78046,3596.6,3596.4,0.03785398]
[1732881895073,2.78046,3596.6,3596.0,3.61011]